Cogmind - Beta 16.1 @@@ ROGUE MODE // 2026.04.06 @ 15:28:29 Player: mephiles96 Result: Destroyed by Autobeam Turret with Autobeam Performance ------------- Evolutions (0) 0 Regions Visited (2) 400 Robots Destroyed (21) 105 Value Destroyed (347) 347 Prototype IDs (0) 0 Alien Tech Used (0) 0 Bonus (0) 0 TOTAL SCORE: 852 Bonus ------- None Cogmind --------- Core Integrity 0/250 Matter 299/300 Energy 98/100 System Corruption 0% Temperature Cool (12) Movement Rolling (105) Location -10/Subcaves Parts ------- > --- POWER (1) -------- Subdweller Power Source > --- PROPULSION (2) --- Compact Wheel Subdweller Monowheel > --- UTILITY (2) ------ Heat Sink Large Storage Unit > --- WEAPON (2) ------- Particle Gun > --- INVENTORY (15) --- Light Treads Makeshift Leg Subdweller Monowheel Improved Hover Unit Improved Hover Unit Flight Unit Flight Unit Structural Scanner Sensor Array Signal Interpreter Improved Terrain Scanner Seismic Detector Makeshift Transmission Jammer Small Laser Mining Laser Peak State ------------ > --- POWER ------------ Subdweller Power Source > --- PROPULSION ------- Light Treads Subdweller Monowheel > --- UTILITY ---------- Heat Sink Large Storage Unit > --- WEAPON ----------- Particle Gun Subdweller Laser > --- INVENTORY -------- Makeshift Leg Wheel Compact Wheel Subdweller Monowheel Improved Hover Unit Improved Hover Unit Structural Scanner Sensor Array Signal Interpreter Improved Terrain Scanner Seismic Detector Makeshift Transmission Jammer Small Laser Mining Laser [Rating: 13] Favorites ----------- Power Light Ion Engine Engine Light Ion Engine Propulsion Light Treads Treads Light Treads Leg Aluminum Leg Wheel Compact Wheel Utility Heat Sink Device Heat Sink Storage Large Storage Unit Weapon Medium Laser Energy Gun Medium Laser Build | -11 -10 -10 ------- Run | Yrd Mat Sub Slots Evolved . | . . . Power . | . . . Propulsion . | . . . Utility . | . . . Weapon . | . . . Parts Attached 23 | 8 11 4 Power 3 | 1 1 1 Engine 3 | 1 1 1 Core . | . . . Reactor . | . . . Propulsion 9 | 3 4 2 Treads 4 | 2 1 1 Leg 2 | . 2 . Wheel 3 | 1 1 1 Hover . | . . . Flight . | . . . Utility 6 | 2 4 . Device 3 | 1 2 . Storage 3 | 1 2 . Processor . | . . . Hackware . | . . . Protection . | . . . Artifact . | . . . Weapon 5 | 2 2 1 Energy Gun 5 | 2 2 1 Energy Cannon . | . . . Ballistic Gun . | . . . Ballistic Cannon . | . . . Launcher . | . . . Special Weapon . | . . . Impact Weapon . | . . . Slashing Weapon . | . . . Piercing Weapon . | . . . Special Melee Weapon . | . . . Unidentified Prototypes . | . . . Parts Lost 5 | . 3 2 Power 2 | . 1 1 Propulsion 1 | . 1 . Utility . | . . . Weapon 2 | . 1 1 Highest Loss Streak 2 | . 2 1 To Critical Strikes . | . . . Average Backups 10 | 6 9 14 Power . | . . . Propulsion 4 | 3 3 6 Utility 3 | . 3 5 Weapon 2 | 1 2 2 Tool/Special . | . . . Unused Backups 19 | . 3 16 Power . | . . . Propulsion 10 | . . 10 Utility 7 | . 2 5 Weapon 2 | . 1 1 Tool/Special . | . . . Average Slot Usage (%) 95 | . 96 94 Engine 11 | . 12 9 Treads 8 | . 6 12 Leg 5 | . 8 . Wheel 13 | . 12 16 Device 13 | . 13 14 Storage 14 | . 14 14 Energy Gun 26 | . 26 27 Peak Build Rating 13 | 8 10 13 Average Rating 8 | 6 8 11 On Entrance 5 | . 7 10 Avg Prop Armor Cover (%) 10 | 11 13 8 Naked Turns . | . . . Heaviest Build 33 | 13 29 33 Greatest Support 40 | 40 40 36 Greatest Overweight (x) 1 | . 1 1 Average Overweight (x) . | . . . Largest Inventory Capacity 15 | 8 15 15 Average Capacity 11 | 7 11 15 Most Carried 15 | 8 15 15 Average Carried 10 | 6 9 14 Final Capacity 15 | 8 15 15 Final Carried 15 | 7 15 15 Class Distribution -------------------- 100% | Mutant Dominant Class ---------------- Mutant | -10/Materials Mutant | -10/Subcaves Resources | -11 -10 -10 ----------- Run | Yrd Mat Sub Matter Collected 446 | 280 112 54 Remotely . | . . . Salvage Created 628 | 245 283 100 Parts 39 | 19 11 9 Haulers Intercepted 2 | . 2 . Recyclers Shooed 2 | . 2 . Parts Field Recycled . | . . . Retrieved Matter . | . . . Parts Self-Destructed 8 | . . 8 Prevented . | . . . Parts Restored . | . . . Kills | -11 -10 -10 ------- Run | Yrd Mat Sub Combat Hostiles Destroyed 10 | . 5 5 Guns 10 | . 5 5 Classes Destroyed 7 | 3 2 2 Worker 2 | 2 . . Tunneler 6 | 6 . . Hauler 2 | . 2 . Recycler 1 | 1 . . Swarmer 3 | . . 3 Grunt 5 | . 5 . Subdweller 2 | . . 2 Best Kill Streak 3 | 3 2 3 Combat Bots Only 3 | . 2 3 Max Kills in Single Turn 1 | 1 1 1 Gunslinging . | . . . Exploded . | . . . Melee . | . . . Uniques/NPCs Destroyed . | . . . Combat | -11 -10 -10 -------- Run | Yrd Mat Sub Hostile Shots Fired 127 | . 49 78 Missed 35 | . 8 27 Hits 92 | . 41 51 Projectile 92 | . 41 51 Critical Strikes 2 | . 1 1 Damage Taken 968 | . 472 496 Core 251 | . 109 142 Absorbed by Shields . | . . . Core Remaining (%) 100 | 100 . . Volleys Fired 62 | 20 27 15 Largest 2 | 2 2 2 Hottest 125 | 100 115 125 Shots Fired 116 | 40 46 30 Gun 116 | 40 46 30 Cannon . | . . . Launcher . | . . . Special . | . . . Kinetic . | . . . Thermal 116 | 40 46 30 Explosive . | . . . Electromagnetic . | . . . Robot Hit Streak 13 | 9 13 5 Robot Miss Streak 2 | 2 2 2 Penetration Max . | . . . Secondary Targets 3 | . 1 2 Max Gunslinging Chain 1 | . 1 1 Shots Hit Robots 75 | 23 35 17 Core Hits 33 | 10 17 6 Critical Kills 1 | . . 1 Critical Parts Destroyed . | . . . Critical Strikes 8 | 3 1 4 Burn 5 | 3 1 1 Destroy 3 | . . 3 Melee Attacks . | . . . Impact . | . . . Slashing . | . . . Piercing . | . . . Sneak Attacks . | . . . Combat Hostiles . | . . . Follow-up Attacks . | . . . Damage Inflicted 1120 | 326 489 305 Guns 1111 | 326 480 305 Cannons . | . . . Explosions . | . . . Melee . | . . . Ramming 9 | . 9 . Kinetic . | . . . Thermal 1111 | 326 480 305 Explosive . | . . . Electromagnetic . | . . . Impact . | . . . Slashing . | . . . Piercing . | . . . Highest Corruption . | . . . Average Corruption . | . . . Corruption Purged . | . . . Corruption Blocked . | . . . Overload Shots . | . . . Overflow Damage . | . . . Projectiles . | . . . Explosions . | . . . Melee . | . . . Knockbacks . | . . . Impact . | . . . Kinetic . | . . . Secondary . | . . . Self-Inflicted Damage . | . . . Shots . | . . . Rammed 4 | . 4 . Targets Rammed 4 | . 4 . Kicked . | . . . Crushed . | . . . Highest Temperature 390 | 390 255 . Average Temperature 119 | 133 106 . Received Heat Transfer 402 | . 276 126 Effects 4 | 1 3 . Interference 3 | . 3 . Short Circuit 1 | 1 . . Siege Activations . | . . . Martial Activations . | . . . Shielding Activations . | . . . Robots Disrupted . | . . . Combat Hostiles . | . . . Robots Corrupted . | . . . Combat Hostiles . | . . . Parts Fried . | . . . Impact Corruptions . | . . . Robots Melted . | . . . Combat Hostiles . | . . . Parts Melted 7 | 5 1 1 Heat Transferred 3307 | 1184 1443 680 Parts Sabotaged . | . . . Parts Stolen . | . . . Parts Stripped . | . . . Power Chain Reactions . | . . . Alert | -11 -10 -10 ------- Run | Yrd Mat Sub Maximum Alert Level . | . . . Low Security (%) 100 | 100 100 . Level 1 . | . . . Level 2 . | . . . Level 3 . | . . . Level 4 . | . . . Level 5 . | . . . High Security . | . . . Max Security . | . . . Peak Influence 40 | 15 40 . Initial . | . . . Average 5 | 2 6 . Influence Increases 348 | 45 183 120 Destroy 0b10 Robot/C 160 | . 100 60 Destroy 0b10 Robot/NC 55 | 45 10 . Destroy Leader 24 | . 24 . Successful Hack 19 | . 19 . Lose Combat Pursuer 90 | . 30 60 Influence Decreases 268 | 45 161 62 Entered New Map 11 | . . 11 Time Decay 217 | 45 131 41 Lost Part 40 | . 30 10 Squads Dispatched 1 | . 1 . Investigation 1 | . 1 . Extermination . | . . . Reinforcement . | . . . Assault . | . . . Garrison . | . . . Intercept . | . . . Searches Triggered . | . . . Construction Impeded . | . . . Haulers Reinforced . | . . . Active Scanning Responses . | . . . Cargo Convoy Interrupts . | . . . Stealth | -11 -10 -10 --------- Run | Yrd Mat Sub Distress Signals 1 | . 1 . Communications Jammed . | . . . Distress Signals . | . . . Times Spotted 16 | . 6 10 Peak Tracking Total 5 | . 3 5 Tactical Retreats 4 | . 1 3 Traps | -11 -10 -10 ------- Run | Yrd Mat Sub Traps Triggered 1 | . 1 . Indirectly . | . . . Trap Hack Attempts . | . . . Triggered . | . . . Disarmed . | . . . Reprogrammed . | . . . Reused . | . . . Traps Extracted . | . . . Installed . | . . . Triggered . | . . . Machines | -11 -10 -10 ---------- Run | Yrd Mat Sub Machines Disabled . | . . . Max in Single Turn . | . . . Machines Repaired . | . . . Machines Dismantled . | . . . Machines Sabotaged . | . . . Overloaded Fab Kills . | . . . Hacking | -11 -10 -10 --------- Run | Yrd Mat Sub Machines Accessed 2 | . 2 . Terminals 2 | . 2 . Fabricators . | . . . Repair Stations . | . . . Recycling Units . | . . . Scanalyzers . | . . . Garrison Access . | . . . Total Hacks 6 | . 6 . Successful 3 | . 3 . Failed 3 | . 3 . Catastrophic 1 | . 1 . Database Lockouts . | . . . Manual 6 | . 6 . Terminals 6 | . 6 . Fabricators . | . . . Repair Stations . | . . . Recycling Units . | . . . Scanalyzers . | . . . Garrison Access . | . . . Terminal Hacks 2 | . 2 . Part Schematic 1 | . 1 . Alert Level 1 | . 1 . Fabricator Hacks . | . . . Repair Station Hacks . | . . . Recycling Unit Hacks . | . . . Scanalyzer . | . . . Garrison Access Hacks . | . . . Unauthorized Hacks 1 | . 1 . Terminals 1 | . 1 . Track 1 | . 1 . Fabricators . | . . . Repair Stations . | . . . Recycling Units . | . . . Scanalyzers . | . . . Garrison Access . | . . . Data Cores Recovered . | . . . Used . | . . . Hacking Detections 1 | . 1 . Full Trace Events . | . . . Feedback Events . | . . . Feedback Blocked . | . . . Robot Schematics Acquired . | . . . Robots Built . | . . . Authchips . | . . . Time . | . . . Total Robot Build Rating . | . . . Part Schematics Acquired 1 | . 1 . Parts Built . | . . . Authchips . | . . . Time . | . . . Total Part Build Rating . | . . . Part Studies Acquired . | . . . Parts Repaired . | . . . Time . | . . . Parts Recycled . | . . . Recycled Matter . | . . . Retrieved Matter . | . . . Retrieved Components . | . . . Parts Scanalyzed . | . . . Part Schematics Acquired . | . . . Parts Damaged . | . . . Bothacking | -11 -10 -10 ------------ Run | Yrd Mat Sub Used RIF Installer . | . . . Robots Hacked . | . . . Non-combat . | . . . Combat . | . . . Robot Hacks Applied . | . . . Relay Couplers Released . | . . . Fabnet Peak Effective % . | . . . Robots Rewired . | . . . Allies Hacked . | . . . Hacks Repelled . | . . . Allies | -11 -10 -10 -------- Run | Yrd Mat Sub Total Allies . | . . . Largest Group . | . . . Highest-Rated Group . | . . . Highest-Rated Ally . | . . . Total Orders . | . . . Ally Attacks . | . . . Total Damage . | . . . Kills . | . . . Allies Corrupted . | . . . Allies Melted . | . . . Intel | -11 -10 -10 ------- Run | Yrd Mat Sub Active Infowar (turns) 476 | 176 263 37 Seismic 476 | 176 263 37 Robot Analysis Total . | . . . Derelict Logs Recovered . | . . . Drone Launches . | . . . Drone Recoveries . | . . . Exploration | -11 -10 -10 ------------- Run | Yrd Mat Sub Turns Passed 1282 | 260 679 343 Spaces Moved 701 | 93 455 153 Core 2 | 2 . . Treads 186 | 81 35 70 Legs 125 | . 125 . Wheels 388 | 10 295 83 Hover . | . . . Flight . | . . . Fastest Speed 50 | 50 90 105 Average Speed 130 | 151 112 171 Slowest Speed 240 | 160 160 240 Overloaded Moves . | . . . Propulsion Burnouts . | . . . Robots Hopped . | . . . Potential Cave-ins . | . . . Cave-ins Triggered . | . . . Exploration Rate (%) 22 | 5 48 13 Regions Visited 2 Branch Regions 1 Pre-discovered Areas . | . . . Known Exits Taken . | . . . Unknown Exits Taken 2 | 1 1 . Scrap Searched . | . . . Spaces Dug . | . . . Terrain Destroyed . | . . . Melee . | . . . Projectile . | . . . AOE . | . . . Terrain Rammed . | . . . Walls Destroyed . | . . . Machines Disabled . | . . . Actions | -11 -10 -10 --------- Run | Yrd Mat Sub Total 950 | 168 576 206 Wait 109 | 39 54 16 Move 699 | 92 454 153 Hop . | . . . Pick Up 28 | 8 13 7 Fast Attach 12 | 7 4 1 Attach 3 | . 3 . Detach 2 | . 2 . Swap 12 | 1 6 5 Drop 19 | 1 9 9 Fire 62 | 20 27 15 Melee . | . . . Ram . | . . . Kick . | . . . Crush 4 | . 4 . Escape Stasis . | . . . Rewire . | . . . Trap . | . . . Miscellaneous . | . . . Route ------- -11/Scrapyard -10/Materials (discovered 2 exits: [*Mat] / [*Sub]) -10/Subcaves (discovered 2 exits: [*Mat] / [*Rec]) History --------- Turn | Location | Event 19 | -11/Scrapyard | Discovered new exit (range 16) 261 | -11/Scrapyard | Entered Materials 310 | -10/Materials | Build established: Mutant 582 | -10/Materials | Discovered new exit (range 4) 647 | -10/Materials | Discovered new exit (range 10) 940 | -10/Materials | Entered Subcaves 982 | -10/Subcaves | Core integrity fell below 50% 1016 | -10/Subcaves | Discovered new exit (range 15) 1271 | -10/Subcaves | Discovered new exit (range 15) 1272 | -10/Subcaves | Core integrity fell below 20% 1283 | -10/Subcaves | Destroyed by Autobeam Turret with Autobeam Last Messages --------------- 01183_ Acquired 10 matter. 01218_ Acquired Wheel. 01231_ S-10 Pest destroyed. 01239_ Lgt. Assault Rifle fries itself beyond repair. 01240_ S-10 Pest destroyed. 01240_ Switching to secondary target: S-10 Pest. 01242_ Flight Unit fries itself beyond repair. 01243_ S-10 Pest suffers critical hit (Burn). 01247_ Flight Unit fries itself beyond repair. 01249_ S-10 Pest destroyed. 01249_ Switching to secondary target: S-10 Pest. 01252_ S-10 Pest destroyed. 01259_ Dropped Wheel. 01260_ Acquired Flight Unit. 01271_ EXIT=FOUND 01271_ Sub. Laser destroyed. 01275_ Acquired 9 matter. 01281_ Sub. Power Source shoots sparks and powers down. Map ----- +----------------------------------------------------+ | ?????????????????????????????????????????????????? | | ?????????????????????????????????????????????????? | | ?????????????????????????????????????????????????? | | ?????????????????????????????????????????????????? | | ?????????????????????????????????????????????????? | | ?????????????????????????????????????????????????? | | ?????????????????????????????????????????????????? | | ?????????????????????????????????????????????????? | | ?????????????????????????????????????????????????? | | ?????????????????????????????????????????????????? | | ?????????????????????????????????????????????????? | | ?????????????????????????????????????????????????? | | ?????????????????????????????????????????????????? | | ?????????????????????????????????????????????????? | | ?????????????????????????????????????????????????? | | ????????????###??????????????????????????????????? | | #######???## ##?????????????????????????????? ?? | | ## ##??# #???????????????????????###??? ??? | | < #?## #??????????????????????# ##? #??? | | ### #????????????????????### ## #??? | | ### ##???#######?????????## ???? | | ## #???#""" "?????????# ???? | | ## # ##???#" ?????????# ?????? | | #???#" ########## #???????? | | # ## ##??##""t % ##??????? | | # #### #??#< @ ##?????? | | ### ##??##""t % #?????? | | # # #???#" ######## % #?????? | | # % ##???#" ???????# % ##?????? | | ##!%! ##??#""" "???????## ==% ####??????? | | ?# ##?###########????# %##?????????? | | ?# ## ####????# ######%%% #??????????? | | ## ## # ##????# ## #?########?? | | # ####### ## ##? | | ## # # # #? | | ## ] ] % #? | | # ## ###? | | # ## # ## ## # ## ###? | | ## ## ############### % ## | | ### ## ### ??????????????## # | | [## # ### #??????????????# | | &=& ## #??????????????# % | | &! #????????????# #### | | =# ###### ##????????????# #??## # | | #####?????## ##?????????????## #???? ######### | | ???????????#####???????????????####????###???????? | | ?????????????????????????????????????????????????? | | ?????????????????????????????????????????????????? | | ?????????????????????????????????????????????????? | | ?????????????????????????????????????????????????? | +----------------------------------------------------+ Best States ------------- Heat Dissipation 35 Energy Generation 15 Energy Capacity 200 Matter Stores 300 Matter Capacity 300 Sight Range 16 Terrain Scan Density 10 Evasion (%) 55 Recoil Reduction 2 Item Schematics ----------------- Com. Wheel | -10/Materials | Hacked Robot Schematics ------------------ None Fabricated ------------ Nothing Repaired ---------- Nothing Studied --------- None Alien Tech Used ----------------- None Achievements -------------- None Challenges ------------ None Game ------ Seed LauncherChromionSubcomponent Manual? 0 Play Time 00:13:41 Cumulative 44.0 hours Start 2026.04.05 @ 18:18:16 End 2026.04.06 @ 15:28:29 Sessions 2 Manual Loads 0 Difficulty Rogue Special Mode None Game No. 54 Rogue 54 Adventurer 0 Explorer 0 Win Type - Total 0 Types 0/0/0/0/0/0/0/0/0/0 Lore% 16 Gallery% 32 Achievement% 25 Wizard Run 0 Options --------- Layout 2 ASCII 0 Keyboard 0 Movement Numpad Keybinds 1 Fullscreen 1 Font 24/Smallcaps Map View 50x44 Zoom Use 0% Tactical HUD 1 Map Filters NONE Filters NONE Steam 1 RUN: de6050cf-5400-46e8-918d-7eae9ccb4443